fUST/lending_fUST_20250228
["ID","MTS","AMOUNT","RATE_DAILY","PERIOD"]
[354809191,1740711045673,-500.0,0.00071779,120]
[354809192,1740711045683,-500.0,0.00071779,120]
[354809193,1740711045692,-500.0,0.00071779,120]
[354809194,1740711045705,-500.0,0.00071779,120]
[354809195,1740711045715,-500.0,0.00071779,120]
[354809196,1740711045724,-500.0,0.00071779,120]
[354809197,1740711045734,-3354.16,0.00071779,120]
[354809199,1740711045745,-500.0,0.00071779,120]
[354809201,1740711045754,-200.0,0.0007266,120]
[354809203,1740711045763,-324.32,0.000734,30]
[354809205,1740711045773,-547.11317341,0.00073571,15]
[354809207,1740711045782,-1500.0,0.00073571,14]
[354809209,1740711045791,-1500.0,0.00073571,15]
[354809211,1740711045801,-1500.0,0.00073571,14]
[354809213,1740711045810,-485.82506291,0.00073571,14]
[354809214,1740711045820,-1000.0,0.00073971,2]
[354809216,1740711045829,-666.0,0.00073972,2]
[354809218,1740711045838,-180.58641308,0.00073972,2]
[354809220,1740711045848,-500.0,0.00073972,120]
[354809222,1740711045857,-1220.83,0.00073972,120]
[354809224,1740711045867,-3264.74,0.00073972,120]
[354809225,1740711045876,-1178.86,0.00073972,120]
[354809227,1740711045886,-1624.99,0.00074417,120]
[354809229,1740711045895,-560.65,0.00074417,120]
[354809230,1740711045905,-1395.02,0.00074417,120]
[354809232,1740711045916,-500.0,0.00074516,120]
[354809234,1740711045925,-586.18,0.00074516,120]
[354809235,1740711045934,-500.0,0.00074516,120]
[354809237,1740711045944,-500.0,0.00074516,120]
[354809239,1740711045953,-500.0,0.00074516,120]
[354809241,1740711045962,-689.73,0.00074516,120]
[354809244,1740711045971,-721.81,0.00074516,120]
[354809247,1740711045981,-3541.66,0.00074516,120]
[354809248,1740711045991,-397.77,0.00074516,120]
[354809250,1740711046001,-823.90377585,0.00074516,120]
[354809290,1740711046215,-1092.75622415,0.00074516,120]
[354809293,1740711046226,-500.0,0.00074516,120]
[354809296,1740711046236,-1371.64,0.00074516,120]
[354809300,1740711046246,-3093.38,0.00074516,120]
[354809304,1740711046255,-745.08,0.00074516,120]
[354809308,1740711046265,-500.0,0.00074516,120]
[354809312,1740711046274,-241.02,0.00074516,120]
[354809316,1740711046284,-1141.61,0.00074516,120]
[354809320,1740711046294,-585.52,0.00074516,120]
[354809323,1740711046304,-500.0,0.00074516,120]
[354809327,1740711046313,-2121.8,0.00074516,120]
[354809331,1740711046323,-500.0,0.00074516,120]
[354809335,1740711046333,-799.49,0.00074516,120]
[354809338,1740711046343,-500.0,0.00074516,120]
[354809341,1740711046356,-1492.81,0.00074516,120]
[354809344,1740711046366,-762.94,0.00074516,120]
[354809347,1740711046376,-280.95602085,0.00074516,120]
[354809350,1740711046388,-219.04397915,0.00074516,120]
[354809352,1740711046397,-500.0,0.00074516,120]
[354809355,1740711046407,-500.0,0.00074516,120]
[354809358,1740711046421,-725.19,0.00074516,120]
[354809360,1740711046430,-500.0,0.00074516,120]
[354809363,1740711046439,-6264.52,0.00074516,120]
[354809366,1740711046449,-500.0,0.00074516,120]
[354809369,1740711046459,-15140.25,0.00074516,7]
[354809372,1740711046469,-1016.52,0.00074516,120]
[354809376,1740711046479,-500.0,0.00074516,120]
[354809380,1740711046489,-500.0,0.00074516,120]
[354809383,1740711046499,-500.0,0.00074516,120]
[354809386,1740711046509,-535.88,0.00074517,120]
[354809389,1740711046518,-500.0,0.00074517,120]
[354809392,1740711046528,-500.0,0.00074517,120]
[354809395,1740711046537,-500.0,0.00074517,120]
[354809397,1740711046547,-500.0,0.00074517,120]
[354809399,1740711046556,-619.7,0.00074517,120]
[354809401,1740711046566,-500.0,0.00074517,120]
[354809403,1740711046575,-500.0,0.00074517,120]
[354809405,1740711046585,-702.01,0.00074517,120]
[354809406,1740711046594,-3780.72,0.00074517,120]
[354809409,1740711046604,-500.0,0.00074517,120]
[354809411,1740711046614,-3816.17,0.00074517,120]
[354809413,1740711046623,-28125.23,0.00074517,7]
[354809415,1740711046633,-2308.32,0.00074517,120]
[354809417,1740711046642,-684.28,0.00074517,120]
[354809419,1740711046652,-500.0,0.00074517,120]
[354809421,1740711046662,-500.0,0.00074518,120]
[354809423,1740711046673,-500.0,0.00074518,120]
[354809425,1740711046688,-500.0,0.00074518,120]
[354809427,1740711046699,-500.0,0.00074518,120]
[354809429,1740711046709,-500.0,0.00074518,120]
[354809431,1740711046719,-152.5627,0.00074518,120]
[354809433,1740711046730,-269.24428655,0.00074518,120]
[354809434,1740711046739,-500.0,0.00074518,120]
[354809436,1740711046749,-151.0,0.00074518,120]
[354809438,1740711046759,-151.0,0.00074518,120]
[354809440,1740711046768,-500.0,0.00074518,120]
[354809442,1740711046779,-500.0,0.00074518,120]
[354809444,1740711046789,-500.0,0.00074518,120]
[354809446,1740711046799,-500.0,0.00074518,120]
[354809448,1740711046808,-500.0,0.00074518,120]
[354809450,1740711046818,-3354.16,0.00074518,120]
[354809452,1740711046827,-500.0,0.00074518,120]
[354809454,1740711046837,-151.0,0.00074976,120]
[354809456,1740711046846,-151.0,0.00074976,120]
[354809458,1740711046856,-151.0,0.00074976,120]
[354809460,1740711046865,-200.0,0.0007663,120]
[354809462,1740711046875,-150.0,0.000767,120]
[354809464,1740711046886,-1000.0,0.0007671,2]
[354809466,1740711046895,-500.0,0.00076712,120]
[354809468,1740711046905,-1220.83,0.00076712,120]
[354809469,1740711046916,-500.0,0.00076712,120]
[354809470,1740711046925,-3264.74,0.00076712,120]
[354809472,1740711046935,-1178.86,0.00076712,120]
[354809473,1740711046944,-18868.19235204,0.00077,30]
[354809474,1740711046956,-45600.63764796,0.00077,30]
[354809475,1740711046966,-1624.99,0.00077157,120]
[354809476,1740711046976,-560.65,0.00077157,120]
[354809477,1740711046986,-1395.02,0.00077157,120]
[354809478,1740711046996,-5503.07,0.00077157,120]
[354809479,1740711047006,-500.0,0.00077256,120]
[354809480,1740711047016,-586.18,0.00077256,120]
[354809481,1740711047025,-500.0,0.00077256,120]
[354809482,1740711047035,-500.0,0.00077256,120]
[354809483,1740711047044,-500.0,0.00077256,120]
[354809484,1740711047054,-689.73,0.00077256,120]
[354809485,1740711047063,-721.81,0.00077256,120]
[354809486,1740711047072,-3541.66,0.00077256,120]
[354809487,1740711047082,-1595.62695429,0.00077256,120]
[354809488,1740711047094,-321.03304571,0.00077256,120]
[354809489,1740711047104,-500.0,0.00077256,120]
[354809490,1740711047114,-297.52868669,0.00077256,120]
[354809491,1740711047130,-1074.11131331,0.00077256,120]
[354809492,1740711047139,-3093.38,0.00077256,120]
[354809493,1740711047149,-745.08,0.00077256,120]
[354809494,1740711047159,-500.0,0.00077256,120]
[354809495,1740711047171,-1141.61,0.00077256,120]
[354809496,1740711047181,-585.52,0.00077256,120]
[354809497,1740711047191,-500.0,0.00077256,120]
[354809498,1740711047201,-2121.8,0.00077256,120]
[354809499,1740711047211,-500.0,0.00077256,120]
[354809500,1740711047221,-799.49,0.00077256,120]
[354809501,1740711047231,-490.22,0.00077256,120]
[354809502,1740711047241,-1492.81,0.00077256,120]
[354809503,1740711047252,-762.94,0.00077256,120]
[354809504,1740711047262,-500.0,0.00077256,120]
[354809505,1740711047272,-256.03608638,0.00077256,120]
[354809506,1740711047284,-243.96391362,0.00077256,120]
[354809507,1740711047294,-500.0,0.00077256,120]
[354809508,1740711047304,-725.19,0.00077256,120]
[354809509,1740711047313,-500.0,0.00077256,120]
[354809510,1740711047324,-4746.94840542,0.00077256,120]
[354809511,1740711047336,-1517.57159458,0.00077256,120]
[354809512,1740711047346,-500.0,0.00077256,120]
[354809513,1740711047355,-3627.29840542,0.00077256,7]
[354809524,1740711047954,5000.0,0.00052535,30]
[354809525,1740711047972,-400.5,0.00055338,120]
[354809526,1740711047984,-152.71699117,0.00055338,120]
[354809527,1740711047995,-190.0,0.00059,120]
[354809528,1740711048004,-2596.65335583,0.0006089,10]
[354809529,1740711048018,-1187.83664417,0.0006089,10]
[354809530,1740711048028,-190.0,0.00061705,120]
[354809531,1740711048038,-397.0,0.00074159,2]
[354809532,1740711048047,-371.564,0.00077159,2]
[354809533,1740711048058,-553.63328578,0.00077256,7]
[354809534,1740711048075,-10959.3183088,0.00077256,7]
[354809535,1740711048085,-1016.52,0.00077256,120]
[354809536,1740711048095,-500.0,0.00077256,120]
[354809537,1740711048106,-500.0,0.00077256,120]
[354809538,1740711048115,-500.0,0.00077256,120]
[354809539,1740711048125,-535.88,0.00077257,120]
[354809540,1740711048135,-500.0,0.00077257,120]
[354809541,1740711048143,-500.0,0.00077257,120]
[354809542,1740711048153,-500.0,0.00077257,120]
[354809543,1740711048162,-500.0,0.00077257,120]
[354809544,1740711048174,-619.7,0.00077257,120]
[354809545,1740711048185,-500.0,0.00077257,120]
[354809546,1740711048195,-500.0,0.00077257,120]
[354809547,1740711048205,-702.01,0.00077257,120]
[354809548,1740711048215,-3780.72,0.00077257,120]
[354809549,1740711048226,-500.0,0.00077257,120]
[354809550,1740711048236,-3816.17,0.00077257,120]
[354809551,1740711048246,-28125.23,0.00077257,7]
[354809552,1740711048255,-2308.32,0.00077257,120]
[354809553,1740711048265,-684.28,0.00077257,120]
[354809554,1740711048275,-500.0,0.00077257,120]
[354809555,1740711048285,-151.0,0.00077257,30]
[354809556,1740711048294,-151.0,0.00077257,120]
[354809557,1740711048304,-151.0,0.00077257,120]
[354809558,1740711048313,-1076.841152,0.00077257,120]
[354809559,1740711048323,-1076.841152,0.00077257,120]
[354809560,1740711048332,-184.451296,0.00077257,120]
[354809561,1740711048342,-184.451296,0.00077257,120]
[354809562,1740711048351,-500.0,0.00077258,120]
[354809563,1740711048361,-500.0,0.00077258,120]
[354809564,1740711048370,-500.0,0.00077258,120]
[354809565,1740711048381,-500.0,0.00077258,120]
[354809566,1740711048391,-281.21657288,0.00077258,120]
[354809567,1740711048401,-575.97319828,0.00077258,120]
[354809568,1740711048411,-500.0,0.00077258,120]
[354809569,1740711048519,-500.0,0.00077258,120]
[354809570,1740711048529,-500.0,0.00077258,120]
[354809571,1740711048539,-500.0,0.00077258,120]
[354809572,1740711048549,-500.0,0.00077258,120]
[354809573,1740711048558,-3354.16,0.00077258,120]
[354809574,1740711048568,-500.0,0.00077258,120]
[354809575,1740711048578,-151.0,0.00077258,120]
[354809576,1740711048588,-151.0,0.00077258,120]
[354809577,1740711048598,-347.378101,0.00077258,120]
[354809578,1740711048608,-347.378101,0.00077258,120]
[354809579,1740711048618,-151.0,0.00077258,120]
[354809580,1740711048627,-151.0,0.00077258,120]
[354809581,1740711048636,-151.0,0.00077258,120]
[354809582,1740711048645,-690.848298,0.00077258,120]
[354809583,1740711048655,-690.848298,0.00077258,120]
[354809584,1740711048665,-151.0,0.00077258,120]
[354809585,1740711048680,-225.63189029,0.00077719,15]
[354809586,1740711048694,-190.0,0.00077749,120]
[354809587,1740711048704,-151.0,0.00078795,120]
[354809588,1740711048714,-1000.0,0.00079449,2]
[354809589,1740711048723,-666.0,0.00079452,120]
[354809590,1740711048735,-500.0,0.00079452,120]
[354809591,1740711048745,-1220.83,0.00079452,120]
[354809592,1740711048756,-3264.74,0.00079452,120]
[354809593,1740711048766,-1178.86,0.00079452,120]
[354809594,1740711048778,-2293.47,0.000795,7]
[354809595,1740711048787,-1792.35,0.000797,30]
[354809596,1740711048801,-1624.99,0.00079897,120]
[354809597,1740711048811,-560.65,0.00079897,120]
[354809598,1740711048822,-1395.02,0.00079897,120]
[354809599,1740711048832,-1431.26,0.000799,30]
[354809600,1740711048843,-3661.29,0.000799,30]
[354809601,1740711048854,-500.0,0.00079967,120]
[354809602,1740711048865,-1916.66,0.00079995,120]
[354809603,1740711048875,-1371.64,0.00079995,120]
[354809604,1740711048884,-3093.38,0.00079995,120]
[354809605,1740711048895,-745.08,0.00079995,120]
[354809606,1740711048906,-232.06311451,0.00079995,120]
[354809607,1740711048918,-1141.61,0.00079995,120]
[354809608,1740711048928,-585.52,0.00079995,120]
[354809609,1740711048938,-591.93157522,0.00079995,120]
[354809610,1740711048949,-2121.8,0.00079995,120]
[354809611,1740711048959,-799.49,0.00079995,120]
[354809612,1740711048969,-1492.81,0.00079995,120]
[354809613,1740711048981,-762.94,0.00079995,120]
[354809614,1740711048992,-500.0,0.00079995,120]
[354809615,1740711049003,-606.08490756,0.00079995,120]
[354809616,1740711049013,-500.0,0.00079995,120]
[354809617,1740711049023,-500.0,0.00079995,120]
[354809618,1740711049034,-6264.52,0.00079995,120]
[354809619,1740711049044,-500.0,0.00079995,120]
[354809620,1740711049055,-15140.25,0.00079995,7]
[354809621,1740711049066,-1016.52,0.00079995,120]
[354809622,1740711049076,-500.0,0.00079995,120]
[354809623,1740711049087,-500.0,0.00079995,120]
[354809625,1740711049097,-535.88,0.00079996,120]
[354809626,1740711049106,-250.61277841,0.00079996,120]
[354809628,1740711049117,-586.18,0.00079996,120]
[354809630,1740711049126,-500.0,0.00079996,120]
[354809631,1740711049136,-500.0,0.00079996,120]
[354809632,1740711049146,-500.0,0.00079996,120]
[354809633,1740711049156,-500.0,0.00079996,120]
[354809634,1740711049166,-500.0,0.00079996,120]
[354809635,1740711049176,-689.73,0.00079996,120]
[354809636,1740711049185,-500.0,0.00079996,120]
[354809637,1740711049195,-235.12,0.00079996,120]
[354809638,1740711049205,-619.7,0.00079996,120]
[354809639,1740711049214,-721.81,0.00079996,120]
[354809640,1740711049223,-151.0,0.00079996,120]
[354809641,1740711049232,-3541.66,0.00079996,120]
[354809642,1740711049242,-500.0,0.00079996,120]
[354809643,1740711049252,-500.0,0.00079996,120]
[354809644,1740711049262,-672.305236,0.00079996,120]
[354809645,1740711049271,-672.305236,0.00079996,120]
[354809646,1740711049281,-702.01,0.00079996,120]
[354809647,1740711049291,-3780.72,0.00079996,120]
[354809648,1740711049300,-500.0,0.00079996,120]
[354809649,1740711049310,-3816.17,0.00079996,120]
[354809650,1740711049320,-500.0,0.00079996,120]
[354809651,1740711049330,-151.0,0.00079996,2]
[354809652,1740711049339,-151.0,0.00079996,2]
[354809653,1740711049349,-448.133255,0.00079996,120]
[354809654,1740711049358,-19696.89416381,0.00079996,7]
[354809655,1740711049372,-8428.33583619,0.00079996,7]
[354809656,1740711049381,-448.133255,0.00079996,120]
[354809657,1740711049391,-2308.32,0.00079996,120]
[354809658,1740711049401,-684.28,0.00079996,120]
[354809659,1740711049411,-500.0,0.00079996,120]
[354809660,1740711049422,-500.0,0.00079996,120]
[354809661,1740711049432,-725.19,0.00079996,120]
[354809662,1740711049442,-170.973484,0.00079996,3]
[354809663,1740711049451,-500.0,0.00079996,120]
[354809664,1740711049461,-151.0,0.00079997,120]
[354809665,1740711049470,-151.994537,0.00079997,120]
[354809666,1740711049479,-151.0,0.00079997,120]
[354809667,1740711049489,-151.0,0.00079997,120]
[354809668,1740711049499,-151.0,0.00079997,120]
[354809669,1740711049508,-151.0,0.00079997,120]
[354809670,1740711049518,-151.0,0.00079997,120]
[354809671,1740711049527,-151.0,0.00079997,120]
[354809672,1740711049537,-158.571147,0.00079997,120]
[354809673,1740711049546,-933.044701,0.00079997,120]
[354809674,1740711049555,-933.044701,0.00079997,120]
[354809675,1740711049565,-371.500554,0.00079997,120]
[354809676,1740711049575,-371.500554,0.00079997,120]
[354809677,1740711049584,-159.11870197,0.00079998,120]
[354809678,1740711049594,-500.0,0.00079998,120]
[354809679,1740711049603,-500.0,0.00079998,120]
[354809680,1740711049613,-500.0,0.00079998,120]
[354809681,1740711049622,-151.0,0.00079998,120]
[354809682,1740711049632,-151.0,0.00079998,120]
[354809683,1740711049642,-500.0,0.00079998,120]
[354809684,1740711049651,-500.0,0.00079998,120]
[354809685,1740711049660,-151.0,0.00079998,120]
[354809686,1740711049672,-500.0,0.00079998,120]
[354809687,1740711049682,-467.167709,0.00079998,120]
[354809688,1740711049691,-467.167709,0.00079998,120]
[354809689,1740711049703,-500.0,0.00079998,120]
[354809690,1740711049713,-500.0,0.00079998,120]
[354809691,1740711049722,-3354.16,0.00079998,120]
[354809692,1740711049733,-500.0,0.00079998,120]
[354809693,1740711049742,-204.492483,0.0008,120]
[354809694,1740711049752,-8047.87531321,0.0008,120]
[354809695,1740711049765,-2519.45199903,0.0008,120]
[354809696,1740711049776,-2000.0,0.0008,120]
[354809697,1740711049785,-200.0,0.000806,120]
[354809698,1740711049796,-2000.0,0.00081045,7]
[354809699,1740711049807,-500.0,0.00081463,120]
[354809700,1740711049818,-302.0,0.00082188,2]
[354809701,1740711049827,-666.0,0.00082191,120]
[354809702,1740711049839,-500.0,0.00082191,120]
[354809703,1740711049852,-1220.83,0.00082191,120]
[354809704,1740711049863,-3264.74,0.00082191,120]
[354809705,1740711049875,-1178.86,0.00082191,120]
[354809706,1740711049884,-324.32,0.000822,60]
[354809707,1740711049894,-1624.99,0.00082636,120]
[354809708,1740711049904,-560.65,0.00082636,120]
[354809709,1740711049915,-1395.02,0.00082636,120]
[354809710,1740711049925,-5503.07,0.00082636,120]
[354809711,1740711049934,-586.18,0.00082735,120]
[354809712,1740711049943,-404.38999311,0.00082735,120]
[354809713,1740711049953,-500.0,0.00082735,120]
[354809714,1740711049963,-500.0,0.00082735,120]
[354809715,1740711049972,-689.73,0.00082735,120]
[354809716,1740711049982,-721.81,0.00082735,120]
[354809717,1740711049991,-3541.66,0.00082735,120]
[354809718,1740711050000,-1916.66,0.00082735,120]
[354809719,1740711050010,-213.03297164,0.00082735,120]
[354809720,1740711050020,-1371.64,0.00082735,120]
[354809721,1740711050030,-3093.38,0.00082735,120]
[354809722,1740711050039,-745.08,0.00082735,120]
[354809723,1740711050049,-1141.61,0.00082735,120]
[354809724,1740711050058,-585.52,0.00082735,120]
[354809725,1740711050067,-2121.8,0.00082735,120]
[354809726,1740711050077,-500.0,0.00082735,120]
[354809727,1740711050086,-799.49,0.00082735,120]
[354809728,1740711050096,-1492.81,0.00082735,120]
[354809729,1740711050106,-762.94,0.00082735,120]
[354809730,1740711050115,-500.0,0.00082735,120]
[354809731,1740711050125,-500.0,0.00082735,120]
[354809732,1740711050135,-725.19,0.00082735,120]
[354809733,1740711050145,-500.0,0.00082735,120]
[354809734,1740711050154,-6264.52,0.00082735,120]
[354809735,1740711050166,-500.0,0.00082735,120]
[354809736,1740711050177,-15140.25,0.00082735,7]
[354809737,1740711050187,-1016.52,0.00082735,120]
[354809738,1740711050198,-500.0,0.00082735,120]
[354809739,1740711050207,-500.0,0.00082735,120]
[354809740,1740711050218,-500.0,0.00082735,120]
[354809741,1740711050229,-535.88,0.00082736,120]
[354809742,1740711050239,-500.0,0.00082736,120]
[354809743,1740711050248,-500.0,0.00082736,120]
[354809744,1740711050258,-500.0,0.00082736,120]
[354809745,1740711050269,-619.7,0.00082736,120]
[354809746,1740711050279,-500.0,0.00082736,120]
[354809747,1740711050289,-500.0,0.00082736,120]
[354809748,1740711050299,-702.01,0.00082736,120]
[354809749,1740711050308,-3780.72,0.00082736,120]
[354809750,1740711050319,-351.36511429,0.00082736,120]
[354809751,1740711050331,-169.85486198,0.00082736,120]
[354809752,1740711050342,-311.81108122,0.00082736,120]
[354809753,1740711050353,-1336.85781039,0.00082736,120]
[354809754,1740711050510,-500.0,0.00055338,120]
[354809755,1740711050520,-500.0,0.00058078,120]
[354809756,1740711050530,-500.0,0.00060817,120]
[354809757,1740711050540,-499.03,0.00063557,120]
[354809758,1740711050550,-771.4,0.0006489,30]
[354809759,1740711050559,-2167.50110839,0.00082736,120]
[354809760,1740711050569,-15080.16300404,0.00082736,7]
[354809761,1740711050580,-13045.06699596,0.00082736,7]
[354809762,1740711050590,-2308.32,0.00082736,120]
[354809763,1740711050599,-684.28,0.00082736,120]
[354809764,1740711050610,-500.0,0.00082736,120]
[354809765,1740711050619,-500.0,0.00082738,120]
[354809766,1740711050628,-500.0,0.00082738,120]
[354809767,1740711050637,-500.0,0.00082738,120]
[354809768,1740711050646,-532.93091693,0.00082738,120]
[354809769,1740711050656,-155.92,0.00082738,120]
[354809770,1740711050666,-500.0,0.00082738,120]
[354809771,1740711050675,-500.0,0.00082738,120]
[354809772,1740711050688,-500.0,0.00082738,120]
[354809773,1740711050698,-3354.16,0.00082738,120]
[354809774,1740711050708,-500.0,0.00082738,120]
[354809775,1740711050719,-5000.0,0.000829,120]
[354809776,1740711050729,-3000.0,0.000829,120]
[354809777,1740711050740,-500.0,0.00083486,120]
[354809778,1740711050834,-2000.0,0.00083845,60]
[354809779,1740711050844,-9505.61274458,0.000839,60]
[354809780,1740711050856,-2400.0,0.000839,60]
[354809781,1740711050867,-339.03092761,0.000839,60]
[354809782,1740711050973,-500.0,0.00054794,120]
[354809783,1740711050982,-500.0,0.00055338,120]
[354809784,1740711050992,-500.0,0.00055338,120]
[354809785,1740711051001,-500.0,0.00058078,120]
[354809786,1740711051011,-151.0,0.00079996,120]
[354809787,1740711051021,-6525.69443141,0.000839,60]
[354809788,1740711051032,-8088.8,0.000839,60]
[354809789,1740711051735,-513.09,0.00058078,120]
[354809790,1740711051744,-559.67933591,0.00060818,120]
[354809791,1740711051754,-37609.6918964,0.000839,60]
[354809792,1740711051763,-286.0,0.0008458,120]
[354809793,1740711051772,-666.0,0.00084931,120]
[354809794,1740711051782,-500.0,0.00084931,120]
[354809795,1740711051793,-1220.83,0.00084931,120]
[354809796,1740711051802,-3264.74,0.00084931,120]
[354809797,1740711051812,-1178.86,0.00084931,120]
[354809798,1740711051821,-1624.99,0.00085376,120]
[354809799,1740711051831,-560.65,0.00085376,120]
[354809800,1740711051839,-1395.02,0.00085376,120]
[354809801,1740711051848,-586.18,0.00085475,120]
[354809802,1740711051858,-500.0,0.00085475,120]
[354809803,1740711051868,-500.0,0.00085475,120]
[354809804,1740711051877,-689.73,0.00085475,120]
[354809805,1740711051887,-721.81,0.00085475,120]
[354809806,1740711051898,-3541.66,0.00085475,120]
[354809807,1740711051909,-1916.66,0.00085475,120]
[354809808,1740711051920,-3093.38,0.00085475,120]
[354809809,1740711051932,-745.08,0.00085475,120]
[354809810,1740711051941,-1141.61,0.00085475,120]
[354809811,1740711051954,-585.52,0.00085475,120]
[354809812,1740711051964,-2121.8,0.00085475,120]
[354809813,1740711051973,-500.0,0.00085475,120]
[354809814,1740711051983,-799.49,0.00085475,120]
[354809815,1740711051992,-1492.81,0.00085475,120]
[354809816,1740711052003,-762.94,0.00085475,120]
[354809817,1740711052012,-500.0,0.00085475,120]
[354809818,1740711052024,-500.0,0.00085475,120]
[354809819,1740711052047,-725.19,0.00085475,120]
[354809820,1740711052067,-500.0,0.00085475,120]
[354809821,1740711052080,-6264.52,0.00085475,120]
[354809822,1740711052092,-500.0,0.00085475,120]
[354809823,1740711052102,-15140.25,0.00085475,7]
[354809824,1740711052112,-1016.52,0.00085475,120]
[354809825,1740711052122,-500.0,0.00085475,120]
[354809826,1740711052132,-500.0,0.00085475,120]
[354809827,1740711052142,-500.0,0.00085475,120]
[354809828,1740711052152,-535.88,0.00085476,120]
[354809829,1740711052162,-500.0,0.00085476,120]
[354809830,1740711052174,-500.0,0.00085476,120]
[354809831,1740711052185,-500.0,0.00085476,120]
[354809832,1740711052196,-619.7,0.00085476,120]
[354809833,1740711052205,-500.0,0.00085476,120]
[354809834,1740711052216,-500.0,0.00085476,120]
[354809835,1740711052225,-3780.72,0.00085476,120]
[354809836,1740711052235,-151.0,0.00085476,120]
[354809837,1740711052244,-3816.17,0.00085476,120]
[354809838,1740711052255,-151.0,0.00085476,120]
[354809839,1740711052266,-28125.23,0.00085476,7]
[354809840,1740711052276,-347.378101,0.00085476,120]
[354809841,1740711052286,-2308.32,0.00085476,120]
[354809842,1740711052297,-347.378101,0.00085476,120]
[354809843,1740711052308,-151.0,0.00085476,120]
[354809844,1740711052318,-151.0,0.00085476,120]
[354809845,1740711052328,-151.0,0.00085476,120]
[354809846,1740711052338,-684.28,0.00085476,120]
[354809847,1740711052348,-690.848298,0.00085476,120]
[354809848,1740711052357,-500.0,0.00085476,120]
[354809849,1740711052367,-690.848298,0.00085476,120]
[354809850,1740711052377,-151.0,0.00085476,120]
[354809851,1740711052387,-237.04091,0.00085476,30]
[354809852,1740711052397,-151.0,0.00085476,120]
[354809853,1740711052408,-151.0,0.00085476,120]
[354809854,1740711052419,-1076.841152,0.00085476,120]
[354809855,1740711052429,-1076.841152,0.00085476,120]
[354809856,1740711052438,-184.451296,0.00085476,120]
[354809857,1740711052448,-184.451296,0.00085476,120]
[354809858,1740711052457,-500.0,0.00085477,120]
[354809859,1740711052466,-500.0,0.00085477,120]
[354809860,1740711052476,-500.0,0.00085477,120]
[354809861,1740711052485,-151.0,0.00085477,120]
[354809862,1740711052494,-151.0,0.00085477,120]
[354809863,1740711052503,-500.0,0.00085477,120]
[354809864,1740711052513,-500.0,0.00085477,120]
[354809865,1740711052522,-500.0,0.00085477,120]
[354809866,1740711052531,-3354.16,0.00085477,120]
[354809867,1740711052541,-500.0,0.00085477,120]
[354809868,1740711052551,-257.531912,0.00085935,120]
[354809869,1740711052560,-2000.0,0.00086545,14]
[354809870,1740711052571,-2000.0,0.00086545,60]
[354809871,1740711052580,-2000.0,0.00086545,14]
[354809872,1740711052589,-151.0,0.00086545,120]
[354809873,1740711052599,-151.0,0.00087671,120]
[354809874,1740711052608,-672.305236,0.00087671,120]
[354809875,1740711052618,-672.305236,0.00087671,120]
[354809876,1740711052628,-151.0,0.00087671,2]
[354809877,1740711052638,-151.0,0.00087671,2]